[Event "Late-Titled-Tuesday-Blitz-April-30-2024"]
[Site "Chess.com"]
[Date "2024.04.30"]
[Round "2"]
[White "ViIIagra"]
[Black "disciplinedbrat"]
[Result "1-0"]
[WhiteElo "2881"]
[BlackElo "2425"]
[TimeControl "180+1"]
[EndTime "14:18:05 PDT"]
[Termination "ViIIagra won by resignation"]

1. b3 {[%clk 0:03:00.9]} 1... a6 {[%clk 0:02:57.6]} 2. h4 {[%clk 0:02:52.1]}
2... h5 {[%clk 0:02:57.1]} 3. Bb2 {[%clk 0:02:52.1]} 3... b5 {[%clk 0:02:55.1]}
4. e4 {[%clk 0:02:52.3]} 4... Bb7 {[%clk 0:02:55.5]} 5. d3 {[%clk 0:02:52.2]}
5... Nf6 {[%clk 0:02:55.1]} 6. Nf3 {[%clk 0:02:51.8]} 6... d6 {[%clk 0:02:54.6]}
7. Ng5 {[%clk 0:02:52.2]} 7... e5 {[%clk 0:02:51.4]} 8. Nd2 {[%clk 0:02:51.4]}
8... Nbd7 {[%clk 0:02:46.6]} 9. a4 {[%clk 0:02:50.8]} 9... Nc5 {[%clk
0:02:43.8]} 10. g3 {[%clk 0:02:43]} 10... Be7 {[%clk 0:02:43.3]} 11. Bh3 {[%clk
0:02:41.9]} 11... b4 {[%clk 0:02:29]} 12. O-O {[%clk 0:02:37.3]} 12... Bc8
{[%clk 0:02:29.3]} 13. Bg2 {[%clk 0:02:26.3]} 13... Ng4 {[%clk 0:02:26.3]} 14.
Nh3 {[%clk 0:02:11]} 14... g5 {[%clk 0:02:13.6]} 15. hxg5 {[%clk 0:02:04]} 15...
Bxg5 {[%clk 0:02:10.3]} 16. Nxg5 {[%clk 0:02:04.1]} 16... Qxg5 {[%clk
0:02:10.8]} 17. Nf3 {[%clk 0:02:04.8]} 17... Qg7 {[%clk 0:02:09.7]} 18. Nh4
{[%clk 0:02:05.4]} 18... Ne6 {[%clk 0:01:38.9]} 19. Qd2 {[%clk 0:02:00.9]} 19...
Qg5 {[%clk 0:01:30.9]} 20. Qxg5 {[%clk 0:01:54.5]} 20... Nxg5 {[%clk 0:01:30.9]}
21. Rae1 {[%clk 0:01:54.2]} 21... Rg8 {[%clk 0:01:16.1]} 22. f3 {[%clk
0:01:42.1]} 22... Nh6 {[%clk 0:01:10.2]} 23. f4 {[%clk 0:01:32.3]} 23... exf4
{[%clk 0:01:01.3]} 24. gxf4 {[%clk 0:01:33.2]} 24... Ne6 {[%clk 0:00:54.8]} 25.
f5 {[%clk 0:01:31.3]} 25... Ng5 {[%clk 0:00:53.8]} 26. Bc1 {[%clk 0:01:31.5]}
26... Ng4 {[%clk 0:00:52.8]} 27. Kh1 {[%clk 0:01:26.1]} 27... Bb7 {[%clk
0:00:37.5]} 28. f6 {[%clk 0:01:15]} 28... Ne6 {[%clk 0:00:35.4]} 29. Nf5 {[%clk
0:01:10.7]} 29... Rg6 {[%clk 0:00:31.8]} 30. Bf3 {[%clk 0:01:05.5]} 30... Nxf6
{[%clk 0:00:31.4]} 31. Bb2 {[%clk 0:00:44.2]} 31... Ng4 {[%clk 0:00:31]} 32.
Bxg4 {[%clk 0:00:38.6]} 32... hxg4 {[%clk 0:00:28.5]} 33. Kg2 {[%clk 0:00:38.1]}
33... Kd7 {[%clk 0:00:19.1]} 34. Kg3 {[%clk 0:00:38.6]} 34... Rf8 {[%clk
0:00:17.8]} 35. Rh1 {[%clk 0:00:38.2]} 35... f6 {[%clk 0:00:18.2]} 36. Rh7+
{[%clk 0:00:38]} 36... Kc6 {[%clk 0:00:18.5]} 37. Ne7+ {[%clk 0:00:38.3]} 37...
Kb6 {[%clk 0:00:16.4]} 38. Nxg6 {[%clk 0:00:39.2]} 38... Rg8 {[%clk 0:00:15.5]}
39. Ne7 {[%clk 0:00:38.8]} 39... Re8 {[%clk 0:00:15.4]} 40. Nd5+ {[%clk
0:00:38.8]} 40... Kc6 {[%clk 0:00:12.8]} 41. Nxf6 {[%clk 0:00:39]} 41... Rf8
{[%clk 0:00:12.4]} 42. d4 {[%clk 0:00:38.1]} 1-0

[Event "Late-Titled-Tuesday-Blitz-April-30-2024"]
[Site "Chess.com"]
[Date "2024.04.30"]
[Round "2"]
[White "MarkoPe"]
[Black "DenisQ"]
[Result "0-1"]
[WhiteElo "2457"]
[BlackElo "2721"]
[TimeControl "180+1"]
[EndTime "14:18:06 PDT"]
[Termination "DenisQ won by resignation"]

1. d4 {[%clk 0:02:59.5]} 1... d5 {[%clk 0:02:56.5]} 2. g3 {[%clk 0:02:59.6]}
2... c6 {[%clk 0:02:57.3]} 3. Bg2 {[%clk 0:02:59.8]} 3... Nf6 {[%clk 0:02:58]}
4. Nf3 {[%clk 0:03:00.4]} 4... Bf5 {[%clk 0:02:57.8]} 5. O-O {[%clk 0:03:00.7]}
5... Nbd7 {[%clk 0:02:57.6]} 6. c4 {[%clk 0:03:01.1]} 6... e6 {[%clk 0:02:57.3]}
7. Nc3 {[%clk 0:03:01.5]} 7... h6 {[%clk 0:02:53.2]} 8. b3 {[%clk 0:03:01.2]}
8... Bd6 {[%clk 0:02:52.2]} 9. Bb2 {[%clk 0:03:01.5]} 9... O-O {[%clk
0:02:52.7]} 10. Re1 {[%clk 0:03:01.9]} 10... Qe7 {[%clk 0:02:51.9]} 11. Nd2
{[%clk 0:03:00.9]} 11... Ba3 {[%clk 0:02:50.2]} 12. Bxa3 {[%clk 0:02:59.9]}
12... Qxa3 {[%clk 0:02:51.1]} 13. e4 {[%clk 0:03:00.5]} 13... dxe4 {[%clk
0:02:51.2]} 14. Ndxe4 {[%clk 0:03:01.4]} 14... Nxe4 {[%clk 0:02:51]} 15. Nxe4
{[%clk 0:03:02.3]} 15... Rfd8 {[%clk 0:02:47.7]} 16. Qe2 {[%clk 0:02:59.9]}
16... Bxe4 {[%clk 0:02:47]} 17. Qxe4 {[%clk 0:02:57.9]} 17... Nf6 {[%clk
0:02:46.7]} 18. Qe3 {[%clk 0:02:57.1]} 18... Rd7 {[%clk 0:02:44.2]} 19. Re2
{[%clk 0:02:54]} 19... Rad8 {[%clk 0:02:42.9]} 20. Rd1 {[%clk 0:02:54.4]} 20...
a5 {[%clk 0:02:26.9]} 21. Red2 {[%clk 0:02:53.5]} 21... a4 {[%clk 0:02:25.9]}
22. h3 {[%clk 0:02:49.2]} 22... axb3 {[%clk 0:02:23]} 23. axb3 {[%clk
0:02:48.1]} 23... Qb4 {[%clk 0:02:17.4]} 24. Bf3 {[%clk 0:02:44.3]} 24... Ne8
{[%clk 0:02:10.4]} 25. Kg2 {[%clk 0:02:41.4]} 25... Nf6 {[%clk 0:01:55.1]} 26.
h4 {[%clk 0:02:36.5]} 26... Rd6 {[%clk 0:01:43.3]} 27. g4 {[%clk 0:02:24.6]}
27... Ne8 {[%clk 0:01:35.1]} 28. Be4 {[%clk 0:02:17.5]} 28... c5 {[%clk
0:01:27]} 29. dxc5 {[%clk 0:01:59.9]} 29... Rxd2 {[%clk 0:01:24.8]} 30. Rxd2
{[%clk 0:01:36.6]} 30... Qxd2 {[%clk 0:01:25.7]} 31. Qxd2 {[%clk 0:01:35.5]}
31... Rxd2 {[%clk 0:01:24.6]} 32. Bxb7 {[%clk 0:01:35.5]} 32... Rb2 {[%clk
0:01:23.6]} 33. Bc6 {[%clk 0:01:31.9]} 33... Nf6 {[%clk 0:01:18.7]} 34. Ba4
{[%clk 0:01:31.4]} 34... Nxg4 {[%clk 0:01:18]} 35. c6 {[%clk 0:01:31.2]} 35...
Ne3+ {[%clk 0:01:06.6]} 36. Kf3 {[%clk 0:01:19.1]} 36... Nf5 {[%clk 0:01:06.2]}
37. c7 {[%clk 0:01:15.2]} 37... Ne7 {[%clk 0:01:06.1]} 38. c5 {[%clk 0:01:03]}
38... Kf8 {[%clk 0:01:03.9]} 39. Ke4 {[%clk 0:01:00.9]} 39... Nc8 {[%clk
0:01:02.3]} 40. Bd7 {[%clk 0:00:58.1]} 40... Na7 {[%clk 0:00:56.4]} 41. c8=Q+
{[%clk 0:00:57.9]} 41... Nxc8 {[%clk 0:00:56.2]} 42. Bxc8 {[%clk 0:00:58.8]}
42... Rxb3 {[%clk 0:00:56.3]} 43. c6 {[%clk 0:00:58.8]} 43... Ke7 {[%clk
0:00:55.4]} 44. h5 {[%clk 0:00:47.5]} 44... Kd6 {[%clk 0:00:54.1]} 45. Bd7
{[%clk 0:00:47.4]} 45... Rh3 {[%clk 0:00:51.7]} 46. Be8 {[%clk 0:00:47.2]} 46...
Rxh5 {[%clk 0:00:45.7]} 47. Bxf7 {[%clk 0:00:47.1]} 47... Rf5 {[%clk 0:00:44.7]}
48. Bxe6 {[%clk 0:00:28.5]} 48... Kxe6 {[%clk 0:00:43.6]} 49. c7 {[%clk
0:00:28.6]} 49... Rc5 {[%clk 0:00:42.5]} 0-1

[Event "Late-Titled-Tuesday-Blitz-April-30-2024"]
[Site "Chess.com"]
[Date "2024.04.30"]
[Round "2"]
[White "maurovargas01"]
[Black "traack"]
[Result "0-1"]
[WhiteElo "1960"]
[BlackElo "2438"]
[TimeControl "180+1"]
[EndTime "14:18:06 PDT"]
[Termination "traack won on time"]

1. e4 {[%clk 0:02:56.3]} 1... c5 {[%clk 0:02:55.1]} 2. Nc3 {[%clk 0:02:56.4]}
2... e6 {[%clk 0:02:54.8]} 3. f4 {[%clk 0:02:57.3]} 3... d5 {[%clk 0:02:54.4]}
4. Nf3 {[%clk 0:02:58.2]} 4... dxe4 {[%clk 0:02:54.1]} 5. Nxe4 {[%clk
0:02:59.1]} 5... Nf6 {[%clk 0:02:53]} 6. Nf2 {[%clk 0:02:58.8]} 6... Nc6 {[%clk
0:02:49.8]} 7. d3 {[%clk 0:02:58.3]} 7... Be7 {[%clk 0:02:48.5]} 8. g3 {[%clk
0:02:57.9]} 8... O-O {[%clk 0:02:48.8]} 9. Bg2 {[%clk 0:02:54.8]} 9... Qc7
{[%clk 0:02:46.9]} 10. O-O {[%clk 0:02:54.1]} 10... b6 {[%clk 0:02:46.3]} 11.
Bd2 {[%clk 0:02:44]} 11... Bb7 {[%clk 0:02:38.1]} 12. Bc3 {[%clk 0:02:41.4]}
12... Rfd8 {[%clk 0:02:29.8]} 13. a3 {[%clk 0:02:39]} 13... h6 {[%clk
0:02:15.6]} 14. Qe1 {[%clk 0:02:19.3]} 14... a5 {[%clk 0:02:12.3]} 15. Rd1
{[%clk 0:02:17.7]} 15... a4 {[%clk 0:02:11.8]} 16. Rd2 {[%clk 0:02:10.3]} 16...
Nd4 {[%clk 0:02:11.2]} 17. Nd1 {[%clk 0:01:47.7]} 17... b5 {[%clk 0:01:53]} 18.
Nxd4 {[%clk 0:01:37]} 18... cxd4 {[%clk 0:01:51.7]} 19. Bb4 {[%clk 0:01:35.9]}
19... Bxb4 {[%clk 0:01:45.6]} 20. axb4 {[%clk 0:01:35.5]} 20... Bxg2 {[%clk
0:01:46.5]} 21. Rxg2 {[%clk 0:01:33.1]} 21... Nd5 {[%clk 0:01:40.5]} 22. Qe4
{[%clk 0:01:27.1]} 22... Nxb4 {[%clk 0:01:37.9]} 23. c3 {[%clk 0:01:22]} 23...
dxc3 {[%clk 0:01:32]} 24. Qxb4 {[%clk 0:01:21.7]} 24... c2 {[%clk 0:01:32.2]}
25. Nc3 {[%clk 0:01:20.7]} 25... Rxd3 {[%clk 0:01:28.9]} 26. Rxc2 {[%clk
0:01:18.5]} 26... Qb6+ {[%clk 0:01:22.9]} 27. Kg2 {[%clk 0:01:13.9]} 27... Rad8
{[%clk 0:01:17.6]} 28. Qxb5 {[%clk 0:01:10]} 28... Rd2+ {[%clk 0:01:17.1]} 29.
Rxd2 {[%clk 0:01:00.3]} 29... Rxd2+ {[%clk 0:01:16.5]} 30. Kh3 {[%clk
0:00:57.2]} 30... Qe3 {[%clk 0:01:04.5]} 31. Qe8+ {[%clk 0:00:52]} 31... Kh7
{[%clk 0:01:03.9]} 32. Qxf7 {[%clk 0:00:41.4]} 32... Rxb2 {[%clk 0:01:03.9]} 33.
Nxa4 {[%clk 0:00:36.9]} 33... Ra2 {[%clk 0:00:54]} 34. Qe8 {[%clk 0:00:32.3]}
34... Qe2 {[%clk 0:00:50.8]} 35. Rg1 {[%clk 0:00:20]} 35... Qxh2+ {[%clk
0:00:49.6]} 36. Kg4 {[%clk 0:00:19.3]} 36... Qxg1 {[%clk 0:00:49.8]} 37. Qxe6
{[%clk 0:00:17.7]} 37... Qd1+ {[%clk 0:00:49.6]} 38. Kf5 {[%clk 0:00:09.7]}
38... Qxa4 {[%clk 0:00:44.6]} 0-1

[Event "Late-Titled-Tuesday-Blitz-April-30-2024"]
[Site "Chess.com"]
[Date "2024.04.30"]
[Round "2"]
[White "venturov"]
[Black "dealshark"]
[Result "0-1"]
[WhiteElo "2500"]
[BlackElo "2303"]
[TimeControl "180+1"]
[EndTime "14:18:07 PDT"]
[Termination "dealshark won on time"]

1. e4 {[%clk 0:03:00.9]} 1... c6 {[%clk 0:03:00.4]} 2. Nf3 {[%clk 0:02:59.8]}
2... d5 {[%clk 0:03:01.3]} 3. d3 {[%clk 0:03:00.5]} 3... Bg4 {[%clk 0:02:58.4]}
4. Nbd2 {[%clk 0:02:59.6]} 4... Nd7 {[%clk 0:02:57.5]} 5. Be2 {[%clk 0:02:59]}
5... e5 {[%clk 0:02:56.9]} 6. O-O {[%clk 0:02:48.6]} 6... Bd6 {[%clk 0:02:56.8]}
7. Re1 {[%clk 0:02:35.5]} 7... Ngf6 {[%clk 0:02:55.7]} 8. c3 {[%clk 0:02:31.4]}
8... O-O {[%clk 0:02:53.7]} 9. a4 {[%clk 0:02:27]} 9... Qc7 {[%clk 0:02:51.7]}
10. h3 {[%clk 0:02:23.3]} 10... Bh5 {[%clk 0:02:51.4]} 11. Qc2 {[%clk
0:02:13.6]} 11... Rfe8 {[%clk 0:02:49.5]} 12. Nf1 {[%clk 0:02:07.4]} 12... a5
{[%clk 0:02:46.9]} 13. Ng3 {[%clk 0:02:07]} 13... Bg6 {[%clk 0:02:47.2]} 14. Nh4
{[%clk 0:01:53.9]} 14... Bf8 {[%clk 0:02:40.1]} 15. Nhf5 {[%clk 0:01:49.7]}
15... Nc5 {[%clk 0:02:32.6]} 16. Bg5 {[%clk 0:01:43.5]} 16... dxe4 {[%clk
0:02:31.3]} 17. Bxf6 {[%clk 0:01:23.1]} 17... exd3 {[%clk 0:02:07.1]} 18. Bxd3
{[%clk 0:01:22.7]} 18... gxf6 {[%clk 0:01:55]} 19. h4 {[%clk 0:00:54.4]} 19...
Rad8 {[%clk 0:01:53.5]} 20. Rad1 {[%clk 0:00:53.1]} 20... Qc8 {[%clk 0:01:17.7]}
21. Bc4 {[%clk 0:00:45.7]} 21... e4 {[%clk 0:01:11.6]} 22. Ne3 {[%clk
0:00:38.5]} 22... h5 {[%clk 0:00:57]} 23. Be2 {[%clk 0:00:31.7]} 23... Nd3
{[%clk 0:00:54.3]} 24. Rf1 {[%clk 0:00:27.5]} 24... Nf4 {[%clk 0:00:53.9]} 25.
Bc4 {[%clk 0:00:22.7]} 25... f5 {[%clk 0:00:50.4]} 26. Qb3 {[%clk 0:00:15.4]}
26... Ne6 {[%clk 0:00:48.5]} 27. Nexf5 {[%clk 0:00:13.5]} 27... Nc5 {[%clk
0:00:45.6]} 28. Qa2 {[%clk 0:00:10.7]} 28... Bxf5 {[%clk 0:00:40.2]} 29. Bxf7+
{[%clk 0:00:09.8]} 29... Kh8 {[%clk 0:00:37.4]} 30. Bxe8 {[%clk 0:00:09.5]}
30... Rxe8 {[%clk 0:00:38]} 31. Nxh5 {[%clk 0:00:09.9]} 31... Qe6 {[%clk
0:00:37]} 32. Qxe6 {[%clk 0:00:06.4]} 32... Bxe6 {[%clk 0:00:36.3]} 33. Nf6
{[%clk 0:00:03.2]} 33... Rb8 {[%clk 0:00:31.4]} 34. g4 {[%clk 0:00:04.1]} 34...
Be7 {[%clk 0:00:29.7]} 0-1

[Event "Late-Titled-Tuesday-Blitz-April-30-2024"]
[Site "Chess.com"]
[Date "2024.04.30"]
[Round "2"]
[White "e4evr"]
[Black "cristianserban1"]
[Result "0-1"]
[WhiteElo "2221"]
[BlackElo "2499"]
[TimeControl "180+1"]
[EndTime "14:18:08 PDT"]
[Termination "cristianserban1 won by checkmate"]

1. e4 {[%clk 0:02:58.8]} 1... c5 {[%clk 0:02:55.8]} 2. Nf3 {[%clk 0:02:58.5]}
2... a6 {[%clk 0:02:56.3]} 3. c4 {[%clk 0:02:57.8]} 3... Nc6 {[%clk 0:02:51]} 4.
d4 {[%clk 0:02:57.3]} 4... cxd4 {[%clk 0:02:49]} 5. Nxd4 {[%clk 0:02:58.2]} 5...
Nf6 {[%clk 0:02:49.5]} 6. Nc3 {[%clk 0:02:58]} 6... e5 {[%clk 0:02:49.9]} 7. Nf5
{[%clk 0:02:56.4]} 7... d5 {[%clk 0:02:50.2]} 8. cxd5 {[%clk 0:02:55.8]} 8...
Bxf5 {[%clk 0:02:20.4]} 9. exf5 {[%clk 0:02:42.3]} 9... Nd4 {[%clk 0:02:10.6]}
10. Bg5 {[%clk 0:02:30.1]} 10... Be7 {[%clk 0:02:06.5]} 11. Bxf6 {[%clk
0:02:11.9]} 11... Bxf6 {[%clk 0:02:07.4]} 12. Bd3 {[%clk 0:02:12.2]} 12... O-O
{[%clk 0:02:01.6]} 13. O-O {[%clk 0:02:11.7]} 13... Qd7 {[%clk 0:01:42.5]} 14.
Qh5 {[%clk 0:02:02.8]} 14... g6 {[%clk 0:01:15.5]} 15. fxg6 {[%clk 0:02:01.8]}
15... hxg6 {[%clk 0:01:16.4]} 16. Ne4 {[%clk 0:01:42]} 16... Bg7 {[%clk
0:01:14.6]} 17. Qh4 {[%clk 0:01:40.2]} 17... f6 {[%clk 0:00:36]} 18. d6 {[%clk
0:01:32.9]} 18... b5 {[%clk 0:00:22.9]} 19. Rac1 {[%clk 0:01:31.8]} 19... Ne6
{[%clk 0:00:16.6]} 20. a4 {[%clk 0:01:25.9]} 20... f5 {[%clk 0:00:15.8]} 21. Ng5
{[%clk 0:01:20.9]} 21... Nxg5 {[%clk 0:00:15.9]} 22. Qxg5 {[%clk 0:01:21]} 22...
Qxd6 {[%clk 0:00:16.3]} 23. Bb1 {[%clk 0:01:20.1]} 23... bxa4 {[%clk 0:00:09.7]}
24. Ba2+ {[%clk 0:01:19]} 24... Kh7 {[%clk 0:00:10.2]} 25. Rfd1 {[%clk
0:01:17.2]} 25... Qf6 {[%clk 0:00:09.8]} 26. Qg3 {[%clk 0:01:16.2]} 26... Rad8
{[%clk 0:00:07.6]} 27. Qh3+ {[%clk 0:01:15.6]} 27... Bh6 {[%clk 0:00:06.1]} 28.
Rc7+ {[%clk 0:01:15.5]} 28... Rf7 {[%clk 0:00:05.7]} 29. Rxf7+ {[%clk
0:01:14.1]} 29... Qxf7 {[%clk 0:00:05.8]} 30. Rxd8 {[%clk 0:01:10.9]} 30... Qxa2
{[%clk 0:00:06.4]} 31. Qf3 {[%clk 0:00:59]} 31... Qb1+ {[%clk 0:00:04.3]} 32.
Rd1 {[%clk 0:00:59.1]} 32... Qxb2 {[%clk 0:00:04.3]} 33. Rd7+ {[%clk 0:00:56.7]}
33... Bg7 {[%clk 0:00:03.4]} 34. h4 {[%clk 0:00:56.7]} 34... a3 {[%clk 0:00:03]}
35. Qd5 {[%clk 0:00:51.6]} 35... a2 {[%clk 0:00:02.4]} 36. Qf7 {[%clk
0:00:51.8]} 36... a1=Q+ {[%clk 0:00:02.7]} 37. Kh2 {[%clk 0:00:52.3]} 37... e4
{[%clk 0:00:03.3]} 38. Rd8 {[%clk 0:00:52.3]} 38... Qe5+ {[%clk 0:00:02.5]} 39.
g3 {[%clk 0:00:53]} 39... Qf6 {[%clk 0:00:01.4]} 40. Qg8+ {[%clk 0:00:53.1]}
40... Kh6 {[%clk 0:00:02]} 41. Re8 {[%clk 0:00:53.3]} 41... Qab2 {[%clk
0:00:01.5]} 42. Kg2 {[%clk 0:00:52.3]} 42... e3 {[%clk 0:00:02.2]} 43. Rxe3
{[%clk 0:00:52.5]} 43... Qc6+ {[%clk 0:00:02.9]} 44. Kg1 {[%clk 0:00:49.4]}
44... Qbc1+ {[%clk 0:00:03.6]} 45. Kh2 {[%clk 0:00:48.8]} 45... Q1h1# {[%clk
0:00:03.9]} 0-1

[Event "Late-Titled-Tuesday-Blitz-April-30-2024"]
[Site "Chess.com"]
[Date "2024.04.30"]
[Round "2"]
[White "HalfIsCrayfish"]
[Black "Arystanner"]
[Result "1-0"]
[WhiteElo "2589"]
[BlackElo "2850"]
[TimeControl "180+1"]
[EndTime "14:18:09 PDT"]
[Termination "HalfIsCrayfish won by resignation"]

1. e4 {[%clk 0:03:00.9]} 1... c6 {[%clk 0:02:56.1]} 2. Nc3 {[%clk 0:02:59.9]}
2... d5 {[%clk 0:02:56.8]} 3. Nf3 {[%clk 0:03:00.5]} 3... dxe4 {[%clk
0:02:57.4]} 4. Nxe4 {[%clk 0:03:01]} 4... Nf6 {[%clk 0:02:58]} 5. Qe2 {[%clk
0:03:01.1]} 5... Nxe4 {[%clk 0:02:58.5]} 6. Qxe4 {[%clk 0:03:02]} 6... Be6
{[%clk 0:02:57.7]} 7. Bc4 {[%clk 0:02:54.7]} 7... Bxc4 {[%clk 0:02:57.7]} 8.
Qxc4 {[%clk 0:02:54.9]} 8... e6 {[%clk 0:02:56.9]} 9. O-O {[%clk 0:02:51.5]}
9... Nd7 {[%clk 0:02:57]} 10. b3 {[%clk 0:02:51.3]} 10... Be7 {[%clk 0:02:54.8]}
11. Bb2 {[%clk 0:02:51.3]} 11... O-O {[%clk 0:02:54.5]} 12. Rad1 {[%clk
0:02:46.6]} 12... Bf6 {[%clk 0:02:54.8]} 13. d4 {[%clk 0:02:46.8]} 13... Qc7
{[%clk 0:02:48.3]} 14. Rfe1 {[%clk 0:02:41.7]} 14... Rad8 {[%clk 0:02:47.3]} 15.
Qe2 {[%clk 0:02:32.3]} 15... h6 {[%clk 0:02:44.8]} 16. c4 {[%clk 0:02:31.3]}
16... Rfe8 {[%clk 0:02:40]} 17. Ne5 {[%clk 0:02:27.8]} 17... Nxe5 {[%clk
0:02:36.4]} 18. dxe5 {[%clk 0:02:27.1]} 18... Be7 {[%clk 0:02:36.9]} 19. Bc3
{[%clk 0:02:14.3]} 19... a6 {[%clk 0:02:32.6]} 20. Qe3 {[%clk 0:02:09.7]} 20...
b5 {[%clk 0:02:30.6]} 21. Qe4 {[%clk 0:01:55]} 21... Rxd1 {[%clk 0:02:28.6]} 22.
Rxd1 {[%clk 0:01:55]} 22... Rd8 {[%clk 0:02:29.3]} 23. Rxd8+ {[%clk 0:01:52.5]}
23... Qxd8 {[%clk 0:02:29.7]} 24. Qd4 {[%clk 0:01:53.1]} 24... Qxd4 {[%clk
0:02:28.5]} 25. Bxd4 {[%clk 0:01:54]} 25... g5 {[%clk 0:02:29]} 26. g4 {[%clk
0:01:52.3]} 26... Kg7 {[%clk 0:02:14.2]} 27. Kg2 {[%clk 0:01:37.7]} 27... bxc4
{[%clk 0:02:09.4]} 28. bxc4 {[%clk 0:01:37.6]} 28... f5 {[%clk 0:02:10.1]} 29.
f3 {[%clk 0:01:28]} 29... Kf7 {[%clk 0:02:10.2]} 30. Kf2 {[%clk 0:01:25.6]}
30... Ke8 {[%clk 0:02:06.2]} 31. Ke2 {[%clk 0:01:25.4]} 31... Kd7 {[%clk
0:02:05.9]} 32. Kd3 {[%clk 0:01:23]} 32... Bb4 {[%clk 0:02:03.4]} 33. h3 {[%clk
0:00:52.7]} 33... Kc7 {[%clk 0:02:03.1]} 34. Kc2 {[%clk 0:00:48.6]} 34... Be1
{[%clk 0:01:49.4]} 35. Bc5 {[%clk 0:00:22.1]} 35... Bg3 {[%clk 0:01:39]} 36.
Bd6+ {[%clk 0:00:22.3]} 36... Kd7 {[%clk 0:01:38.7]} 37. Kc3 {[%clk 0:00:22.2]}
37... c5 {[%clk 0:01:37.7]} 38. Kb3 {[%clk 0:00:19.6]} 38... Kc6 {[%clk
0:01:38.1]} 39. Ka4 {[%clk 0:00:18.7]} 39... Kb6 {[%clk 0:01:37.9]} 40. Kb3
{[%clk 0:00:15.1]} 40... Bh2 {[%clk 0:01:37.3]} 41. Ka4 {[%clk 0:00:12.9]} 41...
Bg3 {[%clk 0:01:34.5]} 42. Bb8 {[%clk 0:00:13]} 42... Bh2 {[%clk 0:01:32.2]} 43.
gxf5 {[%clk 0:00:10.4]} 43... Kc6 {[%clk 0:01:09.2]} 44. fxe6 {[%clk 0:00:06.8]}
44... Bf4 {[%clk 0:01:09]} 45. Bd6 {[%clk 0:00:06.1]} 45... Bd2 {[%clk
0:01:06.4]} 46. Kb3 {[%clk 0:00:05]} 46... Be1 {[%clk 0:01:04.1]} 47. Kc2 {[%clk
0:00:04.2]} 47... a5 {[%clk 0:00:59.3]} 48. Kd3 {[%clk 0:00:04.5]} 48... a4
{[%clk 0:00:57.8]} 49. Ke4 {[%clk 0:00:05]} 49... g4 {[%clk 0:00:58.7]} 50. fxg4
{[%clk 0:00:05]} 1-0

[Event "Late-Titled-Tuesday-Blitz-April-30-2024"]
[Site "Chess.com"]
[Date "2024.04.30"]
[Round "2"]
[White "Rodalquilar"]
[Black "H3nriqueTV"]
[Result "1-0"]
[WhiteElo "2710"]
[BlackElo "2434"]
[TimeControl "180+1"]
[EndTime "14:18:10 PDT"]
[Termination "Rodalquilar won by resignation"]

1. d4 {[%clk 0:03:00.9]} 1... Nf6 {[%clk 0:02:58.3]} 2. Nf3 {[%clk 0:03:01.1]}
2... g6 {[%clk 0:02:58.4]} 3. Bf4 {[%clk 0:03:01.2]} 3... Bg7 {[%clk 0:02:58.7]}
4. e3 {[%clk 0:03:01.6]} 4... O-O {[%clk 0:02:59.1]} 5. Be2 {[%clk 0:03:02.1]}
5... c5 {[%clk 0:02:55.1]} 6. c3 {[%clk 0:03:01.9]} 6... d5 {[%clk 0:02:52.1]}
7. O-O {[%clk 0:03:01.8]} 7... Nc6 {[%clk 0:02:51.8]} 8. Nbd2 {[%clk 0:03:02]}
8... Nh5 {[%clk 0:02:39.4]} 9. Bg5 {[%clk 0:02:50.7]} 9... b6 {[%clk 0:02:25.8]}
10. Qb3 {[%clk 0:02:31.9]} 10... Na5 {[%clk 0:02:15.9]} 11. Qa3 {[%clk
0:02:30.9]} 11... cxd4 {[%clk 0:01:45.4]} 12. cxd4 {[%clk 0:02:24.6]} 12... Nf6
{[%clk 0:01:45.4]} 13. Rac1 {[%clk 0:02:21.4]} 13... Be6 {[%clk 0:01:32.9]} 14.
Ne5 {[%clk 0:02:19.3]} 14... Rc8 {[%clk 0:01:27.5]} 15. b4 {[%clk 0:02:14.8]}
15... Nc4 {[%clk 0:01:19]} 16. Ndxc4 {[%clk 0:02:06.6]} 16... dxc4 {[%clk
0:01:19.1]} 17. b5 {[%clk 0:01:56.7]} 17... c3 {[%clk 0:00:49.8]} 18. Nc6 {[%clk
0:01:51.9]} 18... Qd7 {[%clk 0:00:35.4]} 19. Nxe7+ {[%clk 0:01:50.2]} 19... Kh8
{[%clk 0:00:36]} 20. Nxc8 {[%clk 0:01:50.5]} 20... Rxc8 {[%clk 0:00:36.9]} 21.
Bxf6 {[%clk 0:01:44.3]} 21... Bxf6 {[%clk 0:00:36.4]} 22. Rxc3 {[%clk
0:01:44.7]} 22... Rd8 {[%clk 0:00:23.3]} 23. Rfc1 {[%clk 0:01:43]} 23... Kg7
{[%clk 0:00:20.7]} 24. Rc7 {[%clk 0:01:37.1]} 24... Qd5 {[%clk 0:00:20.4]} 25.
Bc4 {[%clk 0:01:36.7]} 25... Qf5 {[%clk 0:00:19.7]} 26. Bxe6 {[%clk 0:01:35.8]}
26... Qxe6 {[%clk 0:00:20.2]} 27. R1c6 {[%clk 0:01:15.8]} 27... Qe4 {[%clk
0:00:19.8]} 28. Qb3 {[%clk 0:01:11.6]} 28... Rf8 {[%clk 0:00:17.3]} 29. h3
{[%clk 0:01:04.3]} 29... h5 {[%clk 0:00:17]} 30. Rxa7 {[%clk 0:01:02.3]} 30...
Bg5 {[%clk 0:00:16.1]} 31. Re6 {[%clk 0:00:48.6]} 31... Qf5 {[%clk 0:00:15.6]}
32. Re5 {[%clk 0:00:48.3]} 32... Qf6 {[%clk 0:00:15.6]} 33. f4 {[%clk
0:00:48.1]} 33... Bh4 {[%clk 0:00:15.7]} 34. Qd5 {[%clk 0:00:29.9]} 34... Rd8
{[%clk 0:00:11.9]} 35. Qc6 {[%clk 0:00:29.7]} 35... Rd6 {[%clk 0:00:11.6]} 36.
Qc7 {[%clk 0:00:27.2]} 36... Re6 {[%clk 0:00:10.7]} 37. Rxe6 {[%clk 0:00:26.3]}
37... Qxe6 {[%clk 0:00:11.1]} 38. Qe5+ {[%clk 0:00:26.6]} 38... Qxe5 {[%clk
0:00:11.6]} 39. fxe5 {[%clk 0:00:26.1]} 39... Be1 {[%clk 0:00:10.6]} 40. e6
{[%clk 0:00:25.5]} 1-0